[Event "SVK ECo-C Extraliga 2021-22"]
[Site "Slovakia"]
[Date "2022.05.08"]
[Round "8.8"]
[White "Zpevak, Pavel"]
[Black "Danada, Tomas"]
[Result "1/2-1/2"]
[ECO "E61"]
[WhiteElo "2373"]
[BlackElo "2302"]
[Annotator "TA"]
[PlyCount "45"]
[EventDate "2021.10.21"]
[EventType "team-tourn"]
[EventCountry "SVK"]
[SourceTitle "playchess.com"]
[Source "ChessBase"]
[SourceQuality "1"]
[TimeControl "40/5400+30:1800+30"]

{[%evp 9,45,7,0,-15,-14,-25,-23,-19,-16,-26,-29,-44,-48,-59,-51,-71,-80,-75,-77,-87,-52,-52,-37,-43,-23,-56,0,-64,-36,-26,0,-16,0,0,0,-97,7,32]} 1. d4 {[%emt 0:00:17][%cal Bd2d4,Bd4d5][%mdl 32]} Nf6 {[%emt 0:00:06]} 2. c4 {[%emt 0:00:31]} g6 {[%emt 0:00:22]} 3. Nc3 {[%emt 0:00:37]} Bg7 {[%emt 0:00:09]} 4. Bg5 {[%emt 0:00:24]} d6 {[%emt 0:00:14]} 5. e3 {[%emt 0:00:21]} c5 {[%emt 0:00:25]} 6. d5 {[%emt 0:02:13] E61: King's Indian: Early deviations for White, including Smyslov System.} h6 {[%emt 0:00:13]} 7. Bh4 {[%emt 0:00:15] [#]} g5 $146 {[%emt 0:00:05]} ({Predecessor:} 7... Qa5 8. Qd2 g5 9. Bg3 Nh5 10. Be2 Nxg3 11. hxg3 Nd7 12. f4 Nf6 13. Nf3 Ng4 {½-½ (43) Chernyshov,K (2578)-Dvoirys,S (2569) Irkutsk 2010}) 8. Bg3 {[%emt 0:00:15] Black has an edge.} Qa5 {[%emt 0:00:09][%cal Ob7b5]} 9. Bd3 {[%emt 0:12:36]} b5 {[%emt 0:00:12]} 10. cxb5 {[%emt 0:11:49]} Nxd5 $1 {[%emt 0:10:19]} 11. Nge2 {[%emt 0:02:19]} Nxc3 {[%emt 0:02:17]} ({But not} 11... Bxc3+ 12. bxc3 Bb7 13. h4 $14) 12. Nxc3 {[%emt 0:03:35]} Bxc3+ {[%emt 0:03:04]} (12... c4 $2 13. Be4 $18) 13. bxc3 {[%emt 0:01:10]} Qxc3+ {[%emt 0:00:09]} (13... c4 $2 14. Be4 $18) 14. Kf1 {[%emt 0:00:15]} Bb7 {[%emt 0:00:45]} 15. h4 {[%emt 0:02:16]} Nd7 {[%emt 0:01:46]} 16. Rc1 {[%emt 0:08:57]} Qg7 {[%emt 0:03:48]} 17. Qa4 {[%emt 0:11:37]} h5 {[%emt 0:22:48]} (17... g4 $15) 18. Kg1 {[%emt 0:12:39]} (18. hxg5 $11 Qxg5 19. Rh4) 18... Nb6 {[%emt 0:05:19]} 19. Qc2 {[%emt 0:02:57]} c4 {[%emt 0:07:29]} 20. Be2 {[%emt 0:02:50]} Rc8 {[%emt 0:13:25]} 21. a4 {[%emt 0:02:10]} c3 {[%emt 0:16:46]} 22. Qd1 {[%emt 0:03:37]} (22. a5 $11 {remains equal.} Nd7 23. b6) 22... gxh4 {[%emt 0:09:33]} (22... g4 $17 {Hoping for ...Be4.} 23. a5 Nd7) 23. Rxh4 {Weighted Error Value: White=0.22 (precise) /Black=0.22 (precise)} 1/2-1/2

[Event "SVK ECo-C Extraliga 2021-22"]
[Site "Slovakia"]
[Date "2022.05.09"]
[Round "8.8"]
[White "Bochnicka Vladimir ml."]
[Black "Jakab, Robert"]
[Result "1-0"]
[ECO "A36"]
[WhiteElo "2204"]
[BlackElo "1903"]
[Annotator "TA"]
[PlyCount "61"]
[EventDate "2021.10.21"]
[EventType "team-tourn"]
[EventCountry "SVK"]
[SourceTitle "playchess.com"]
[Source "ChessBase"]
[SourceQuality "1"]
[TimeControl "40/5400+30:1800+30"]

{[%evp 16,61,31,27,43,9,10,10,14,15,30,32,31,39,53,19,47,30,25,15,17,22,61,-24,71,63,89,96,177,179,196,155,204,217,204,198,283,244,247,231,339,308,644,609,1469,1395,29988,29989]} 1. c4 {[%emt 0:00:07]} e5 {[%emt 0:01:31]} 2. Nc3 {[%emt 0:00:09]} Nf6 {[%emt 0:01:17]} 3. g3 {[%emt 0:00:20]} c5 {[%emt 0:04:45]} 4. Bg2 {[%emt 0:01:36]} Nc6 {[%emt 0:01:06]} 5. e4 {[%emt 0:00:56]} d6 {[%emt 0:02:48]} 6. Nge2 {[%emt 0:00:27]} g6 {[%emt 0:04:28]} 7. O-O {[%emt 0:01:13]} Bg7 {[%emt 0:00:23]} 8. d3 {[%emt 0:01:23]} O-O {[%emt 0:03:15]} 9. h3 {[%emt 0:03:04] 9.a3 deserves study.} Ne8 {[%emt 0:09:29] A36: Symmetrical English vs ...g6: 4 Bg2 Bg7.} 10. Kh2 {[%emt 0:06:29]} f5 {[%emt 0:05:34][%cal Of5f4]} 11. f4 {[%emt 0:02:54]} Nf6 {[%emt 0:04:33] [#] The position is equal.} 12. Be3 $146 {[%emt 0:04:04]} (12. fxe5 {is more complex.} dxe5 13. exf5 Bxf5 14. Bg5) ({Predecessor:} 12. exf5 gxf5 13. a3 Rb8 14. Rb1 Bd7 15. b4 b6 16. b5 Ne7 17. Bb2 Qc7 18. Ng1 {1-0 (76) Stelmaszyk,N (1504)-Schmitz,F (1558) Magdeburg 2014}) 12... Qe7 {[%emt 0:04:14]} 13. Qd2 {[%emt 0:04:43]} Bd7 {[%emt 0:04:57]} 14. Rae1 {[%emt 0:04:43]} Rae8 {[%emt 0:02:13]} 15. a3 {[%emt 0:14:36]} a6 {[%emt 0:00:56]} 16. b4 {[%emt 0:07:44]} fxe4 {[%emt 0:14:16]} 17. Nxe4 {[%emt 0:02:37]} Nxe4 {[%emt 0:01:58]} 18. Bxe4 {[%emt 0:01:29]} Kh8 {[%emt 0:07:43]} (18... Qe6 $2 19. Bd5 $18) 19. fxe5 {[%emt 0:09:24]} (19. Nc3 $14) 19... Bxe5 {[%emt 0:04:36]} ({Don't take} 19... Qxe5 20. Nf4 $11) (19... Nxe5 $11 20. Rxf8+ Rxf8 21. bxc5 {[#]} Nxc4 $1 22. dxc4 Qxe4 23. cxd6 Qxc4) 20. Nf4 $16 {[%emt 0:08:32][%cal Oe4g6]} Bf5 {[%emt 0:08:28]} 21. Bg2 {[%emt 0:06:34]} cxb4 {[%emt 0:03:03]} (21... Nd4 $16) 22. d4 {[%emt 0:03:03]} Bg7 {[%emt 0:00:15]} 23. axb4 {[%emt 0:00:24][%cal Ba3b4,Bb4b5][%mdl 32]} Qc7 {[%emt 0:01:43]} (23... h5 $16 {was worth a try.} 24. b5 axb5) 24. Nd5 $18 {[%emt 0:01:50]} Qc8 {[%emt 0:00:39]} 25. Bh6 {[%emt 0:04:53] [#] Threatens to win with b5.} Rxe1 {[%emt 0:01:03]} (25... Rf7 $142 26. Bxg7+ Kxg7) 26. Bxg7+ {[%emt 0:01:20]} ({But not} 26. Rxe1 $6 Rf7 27. Bxg7+ Kxg7 $18) 26... Kxg7 {[%emt 0:00:07]} 27. Rxe1 {[%emt 0:00:17] Strongly threatening b5.} Re8 {[%emt 0:00:26]} (27... Rf7 $142 28. Nf4 Qf8) 28. b5 {[%emt 0:01:13]} Nb8 {[%emt 0:02:19]} (28... Rxe1 $2 29. Qxe1 axb5 30. cxb5 $18) (28... axb5 29. cxb5 Rxe1) 29. Ne7 {[%emt 0:00:52]} Qd7 {[%emt 0:01:07]} 30. Nxf5+ {[%emt 0:00:21]} gxf5 {[%emt 0:00:12]} 31. Qg5+ {[%emt 0:00:21] Weighted Error Value: White=0.14 (very precise) /Black=0.65} 1-0

[Event "SVK ECo-C Extraliga 2021-22"]
[Site "Slovakia"]
[Date "2022.05.08"]
[Round "8.8"]
[White "Gasa, Patrik"]
[Black "Szucs, Vladimir"]
[Result "1/2-1/2"]
[ECO "D02"]
[WhiteElo "2178"]
[BlackElo "2117"]
[Annotator "TA"]
[PlyCount "113"]
[EventDate "2021.10.21"]
[EventType "team-tourn"]
[EventCountry "SVK"]
[SourceTitle "playchess.com"]
[Source "ChessBase"]
[SourceQuality "1"]
[TimeControl "40/5400+30:1800+30"]

{[%evp 17,113,4,11,0,12,14,19,13,10,12,25,24,21,27,39,0,7,-10,11,-19,13,10,19,-20,0,9,22,0,0,-79,0,-16,-21,-25,-31,-43,-40,-51,-41,-67,-65,-74,-72,-68,-66,-58,0,0,0,-42,-25,-41,-41,-41,-32,-42,0,-42,0,-40,0,-44,-32,-32,0,0,0,0,0,0,0,0,0,0,0,0,0,0,0,0,8,0,0,0,21,0,26,21,24,8,8,8,21,0,0,0,17,0]} 1. d4 {[%emt 0:00:01]} d5 {[%emt 0:00:16]} 2. Nf3 {[%emt 0:00:05]} Nf6 {[%emt 0:00:15]} 3. g3 {[%emt 0:04:50]} e6 {[%emt 0:04:55]} 4. Bg2 {[%emt 0:04:35]} Nbd7 {[%emt 0:03:50]} 5. c4 {[%emt 0:01:20]} c6 {[%emt 0:00:08]} 6. Nbd2 {[%emt 0:00:33]} Be7 {[%emt 0:00:09]} 7. O-O {[%emt 0:00:17]} O-O {[%emt 0:00:03]} 8. b3 {[%emt 0:00:36]} b6 {[%emt 0:00:06]} 9. Bb2 {[%emt 0:00:23]} Bb7 {[%emt 0:00:04]} 10. Re1 {[%emt 0:06:06] E07: Closed Catalan: Main Line (5 Nf3 0-0 6 0-0 Nbd7).} Rc8 {[%emt 0:02:48]} 11. Rc1 {[%emt 0:00:24]} Re8 {[%emt 0:09:55]} 12. a3 {[%emt 0:03:00]} a5 {[%emt 0:05:16] [#]} 13. e3 $146 {[%emt 0:19:14]} ({Predecessor:} 13. e4 dxe4 14. Nxe4 Nxe4 15. Rxe4 c5 16. Re1 Bxf3 17. Bxf3 cxd4 18. Qxd4 Bf6 19. Qd2 {1-0 (46) Kun,A (2130)-Deli,F Hungary 1997}) 13... Bd6 {[%emt 0:04:31]} 14. Ne5 {[%emt 0:05:43]} Qe7 {[%emt 0:01:16]} 15. a4 {[%emt 0:16:51]} Rc7 {[%emt 0:09:45]} 16. f4 {[%emt 0:07:25][%cal Bf2f4,Bf4e5][%mdl 32]} Rec8 {[%emt 0:04:04]} 17. Qe2 {[%emt 0:01:14]} Bb4 {[%emt 0:05:45]} 18. Red1 {[%emt 0:01:49]} (18. Nd3 $5 {[%cal Rd3b4]}) 18... Nxe5 {[%emt 0:02:48]} 19. fxe5 {[%emt 0:01:20]} Nd7 {[%emt 0:00:11]} 20. Rc2 {[%emt 0:06:21]} Ba6 {[%emt 0:04:56]} 21. e4 {[%emt 0:05:12]} Nf8 {[%emt 0:09:15]} 22. Qe3 {[%emt 0:03:10]} Bb7 {[%emt 0:07:19]} 23. Nf3 {[%emt 0:07:22] [#]} (23. Qd3 $1 $11) 23... Rd8 {[%emt 0:04:54]} (23... c5 $1 $17 {Strongly threatening ...cxd4.} 24. Nd2 (24. exd5 exd5 25. Nh4 cxd4 $15) 24... Rd7) 24. cxd5 {[%emt 0:01:58]} cxd5 {[%emt 0:00:14]} 25. Rxc7 {[%emt 0:00:05]} Qxc7 {[%emt 0:00:07]} 26. Rc1 {[%emt 0:00:02] Against Qc2} Qd7 {[%emt 0:00:59]} 27. exd5 {[%emt 0:01:08]} Bxd5 {[%emt 0:00:26]} 28. Ng5 {[%emt 0:01:17]} Bxg2 {[%emt 0:03:54]} 29. Kxg2 {[%emt 0:00:02]} h6 {[%emt 0:01:20]} 30. Ne4 {[%emt 0:00:43]} Ng6 {[%emt 0:00:25]} 31. Qf3 {[%emt 0:00:56]} Rc8 {[%emt 0:02:52]} ({Better is} 31... Ne7 $15) 32. Rxc8+ $11 {[%emt 0:00:53]} Qxc8 {[%emt 0:00:05]} 33. Qd3 {[%emt 0:00:15] Inhibits Qc2+.} Qc6 {[%emt 0:00:49]} 34. Kf2 {[%emt 0:00:13]} Ne7 {[%emt 0:01:36]} 35. Ke3 {[%emt 0:01:53]} Nd5+ {[%emt 0:02:13]} 36. Ke2 {[%emt 0:00:14]} Ne7 {[%emt 0:00:45]} 37. Ke3 {[%emt 0:00:16]} Nd5+ {[%emt 0:00:10]} 38. Kf2 {[%emt 0:00:44]} Ne7 {[%emt 0:00:25]} 39. Kf3 {[%emt 0:00:51]} Qd5 {[%emt 0:04:40]} 40. Qc4 {[%emt 0:00:28]} Kh7 {[%emt 0:03:27]} (40... Qd7 {with more complications.} 41. Bc1 Qb7 42. Ke3 Nf5+) 41. Qxd5 {[%emt 0:13:25]} exd5 {[%emt 0:10:06][%mdl 4096] Endgame KBN-KBN} 42. Nf2 {[%emt 0:03:02]} g5 {[%emt 0:02:12]} 43. Ng4 {[%emt 0:02:06]} Ng8 {[%emt 0:01:40]} 44. Ne3 {[%emt 0:03:17]} Ne7 {[%emt 0:00:09]} 45. Ng4 {[%emt 0:04:19]} Ng8 {[%emt 0:00:27]} 46. Ne3 {[%emt 0:00:21]} Ne7 {[%emt 0:00:05]} 47. h3 {[%emt 0:00:14]} Kg6 {[%emt 0:01:11]} 48. g4 {[%emt 0:01:47]} h5 {[%emt 0:06:35]} 49. Ke2 {[%emt 0:02:01]} hxg4 {[%emt 0:01:13]} 50. Nxg4 {[%emt 0:01:43]} Kf5 {[%emt 0:01:54]} 51. Kf3 {[%emt 0:00:19]} Bd2 {[%emt 0:01:54]} 52. Nf6 {[%emt 0:01:04]} Ke6 {[%emt 0:00:38]} 53. Ne8 {[%emt 0:00:38]} Kd7 {[%emt 0:04:12] The position is equal.} 54. Nd6 {[%emt 0:01:48]} Ke6 {[%emt 0:00:27]} 55. Ne8 {[%emt 0:00:06]} Kd7 {[%emt 0:00:06]} 56. Nd6 {[%emt 0:01:57]} Ke6 {[%emt 0:00:06]} 57. Ne8 {[%emt 0:00:29] Weighted Error Value: White=0.12 (very precise) /Black=0.11 (very precise)} 1/2-1/2

[Event "SVK ECo-C Extraliga 2021-22"]
[Site "Slovakia"]
[Date "2022.05.08"]
[Round "8.8"]
[White "Harasta, Igor"]
[Black "Holly, Andrej"]
[Result "0-1"]
[ECO "A05"]
[WhiteElo "2112"]
[BlackElo "2214"]
[Annotator "TA"]
[PlyCount "86"]
[EventDate "2021.10.21"]
[EventType "team-tourn"]
[EventCountry "SVK"]
[SourceTitle "playchess.com"]
[Source "ChessBase"]
[SourceQuality "1"]
[TimeControl "40/5400+30:1800+30"]

{[%evp 9,86,0,18,11,4,0,10,0,-9,-40,-52,-55,-41,-38,-19,-22,0,0,0,-15,-16,-27,-18,-20,-12,-16,21,32,37,37,37,38,68,0,0,-114,-122,-163,-140,-153,-108,-119,-116,-130,-137,-117,-72,-95,-88,-87,-90,-123,-120,-136,-137,-120,-70,-165,0,-64,-38,-37,-38,-46,-38,-248,-250,-240,-248,-339,-326,-550,-550,-533,-527,-510,-479,-850,-830]} 1. Nf3 {[%emt 0:00:03]} Nf6 {[%emt 0:01:10]} 2. g3 {[%emt 0:00:21]} g6 {[%emt 0:00:03]} 3. b4 {[%emt 0:00:31]} Bg7 {[%emt 0:00:07]} 4. Bb2 {[%emt 0:00:07]} O-O {[%emt 0:00:05]} 5. Bg2 {[%emt 0:00:08]} a5 {[%emt 0:01:02]} 6. b5 {[%emt 0:00:32] A05: Réti Opening: 1 Nf3 Nf6.} c6 {[%emt 0:05:58]} 7. a4 {[%emt 0:01:35] [#]} cxb5 $146 {[%emt 0:01:52]} ({Predecessor:} 7... d5 8. O-O Re8 9. d3 Nbd7 10. Nfd2 Qc7 11. Na3 c5 12. c4 d4 13. Nc2 e5 {½-½ (49) Hammer,J (1500)-Lund,F (1686) Lysaker 2002}) 8. axb5 {[%emt 0:00:10] The position is equal.} Qb6 {[%emt 0:00:26]} 9. Bd4 {[%emt 0:15:54]} Qxb5 {[%emt 0:00:39]} 10. Nc3 {[%emt 0:00:14]} Qh5 {[%emt 0:05:38]} 11. h3 {[%emt 0:06:23]} Nd5 {[%emt 0:09:07]} 12. Na4 {[%emt 0:23:03]} Nc6 {[%emt 0:04:04]} 13. Bxg7 {[%emt 0:10:34]} Kxg7 {[%emt 0:00:01]} 14. g4 {[%emt 0:00:49]} Qh6 {[%emt 0:00:02]} 15. e3 {[%emt 0:00:15]} d6 {[%emt 0:04:16]} 16. c4 {[%emt 0:03:12]} Ndb4 {[%emt 0:00:53]} 17. d4 {[%emt 0:00:16]} g5 {[%emt 0:07:27]} 18. Nb6 {[%emt 0:01:58]} Ra6 {[%emt 0:00:46]} 19. Nxc8 {[%emt 0:00:55]} Rxc8 {[%emt 0:00:15]} 20. h4 {[%emt 0:00:48]} Qg6 {[%emt 0:02:09]} 21. O-O {[%emt 0:07:32]} (21. Nd2 $14 Nc2+ 22. Ke2 Nxa1 23. Be4) 21... h6 $11 {[%emt 0:02:43]} 22. d5 {[%emt 0:04:05]} (22. Rc1 $11) 22... Ne5 $17 {[%emt 0:01:18]} 23. Nxe5 {[%emt 0:13:27]} dxe5 {[%emt 0:00:06]} 24. h5 {[%emt 0:01:09]} Qd3 {[%emt 0:02:33] Black is more active.} 25. Qxd3 {[%emt 0:04:57]} Nxd3 {[%emt 0:00:02]} 26. Rfb1 {[%emt 0:02:41]} Rxc4 {[%emt 0:04:46]} 27. Rxb7 {[%emt 0:00:27]} Kf6 {[%emt 0:05:26]} 28. f3 {[%emt 0:01:09]} Rb4 {[%emt 0:01:50]} 29. Rc7 {[%emt 0:00:24]} Ra8 {[%emt 0:03:54]} 30. Rc6+ {[%emt 0:00:50]} Kg7 $1 {[%emt 0:00:09][%cal Oe5e4] White must now prevent ...e4!} 31. Bf1 {[%emt 0:00:32]} Rb3 {[%emt 0:02:03] aiming for ...a4.} 32. Rc7 {[%emt 0:00:53]} Kf8 {[%emt 0:01:34] ...a4 is the strong threat.} 33. Rc6 {[%emt 0:00:08]} (33. Ra4 $1 $15) 33... Kg7 {[%emt 0:07:18]} ({Better is} 33... a4 $19 {Strongly threatening ...a3.} 34. Rxh6 Kg7) 34. Rc7 $15 {[%emt 0:00:06]} a4 {[%emt 0:03:07]} (34... Kf6 $5 {[%cal Ra5a4]} 35. Be2 a4 $17) 35. Rxe7 {[%emt 0:00:08]} a3 {[%emt 0:00:06]} 36. d6 {[%emt 0:00:53]} ({Wrong is} 36. Bxd3 $2 Rxd3 37. Ra2 Rb8 $19) 36... Kf6 $36 {[%emt 0:00:40][%mdl 2048] And now ...a2 would win. White is under pressure.} ({Don't take} 36... a2 37. d7 Kf8 38. Rxa2 $1 $14) 37. f4 $2 {[%emt 0:01:06] This costs White the game.} (37. Rc7 $1 $15) 37... exf4 {[%emt 0:03:03]} 38. exf4 {[%emt 0:00:28]} gxf4 {[%emt 0:00:21] Threatens to win with ...Ne5.} ({Worse is} 38... Nxf4 39. Bc4 Rc3 40. Rxf7+ Ke5 41. d7 Rxc4 42. Re7+ Ne6 43. Re1+ Kf4 44. R7xe6 $17) 39. Bg2 {[%emt 0:00:19] [#]} Ra5 {[%emt 0:00:36] Hoping for ...Ne5.} 40. Re8 {[%emt 0:00:29]} (40. Re4 {might work better.} Ne5 41. Rxf4+ Ke6 42. Rd4) 40... Ne5 $19 {[%emt 0:02:04] Black is clearly winning.} 41. Ra8 {[%emt 0:13:21]} Rxa8 {[%emt 0:03:42]} 42. Bxa8 {[%emt 0:00:19]} Ke6 {[%emt 0:00:22]} 43. Rd1 {[%emt 0:01:23]} (43. g5 $142 hxg5 44. h6) 43... Rd3 {[%emt 0:00:19] Weighted Error Value: White=0.41/Black=0.14 (very precise)} 0-1

[Event "SVK ECo-C Extraliga 2021-22"]
[Site "Slovakia"]
[Date "2022.06.10"]
[Round "9.1"]
[White "Saric, Ivan"]
[Black "Vykouk, Jan"]
[Result "1/2-1/2"]
[ECO "B54"]
[WhiteElo "2693"]
[BlackElo "2464"]
[Annotator "TA"]
[PlyCount "119"]
[EventDate "2021.10.21"]
[EventType "team-tourn"]
[EventCountry "SVK"]
[SourceTitle "playchess.com"]
[Source "ChessBase"]
[SourceQuality "1"]
[TimeControl "40/5400+30:1800+30"]

{[%evp 10,119,20,11,20,25,35,16,18,32,31,10,18,19,23,19,45,45,29,20,19,31,19,26,31,33,93,110,104,122,106,31,149,130,121,126,135,135,132,136,136,141,131,135,134,135,143,98,99,98,98,101,107,112,124,98,98,98,98,98,98,98,130,130,162,155,167,160,160,147,147,147,147,147,147,114,114,94,94,94,94,94,114,114,114,114,114,114,114,65,65,65,65,65,65,65,65,65,65,65,65,65,65,65,65,65,65,65,65,8,65,65]} 1. e4 {[%emt 0:00:07]} c5 {[%emt 0:00:18]} 2. Nf3 {[%emt 0:00:05]} d6 {[%emt 0:00:13]} 3. Bb5+ {[%emt 0:00:34]} Bd7 {[%emt 0:00:45]} 4. c4 {[%emt 0:01:29]} Nc6 {[%emt 0:02:08]} 5. d4 {[%emt 0:01:33]} cxd4 {[%emt 0:02:04]} 6. Nxd4 {[%emt 0:00:58]} Nf6 {[%emt 0:00:17] B54: Sicilian: 2...d6 3 d4 cxd4 4 Nxd4, Unusual Lines .} 7. Nc3 {[%emt 0:00:17]} a6 {[%emt 0:02:45]} 8. Nxc6 {[%emt 0:02:24]} bxc6 {[%emt 0:01:06] The position is equal.} 9. Ba4 {[%emt 0:00:04] [#]} g6 $146 {[%emt 0:01:01]} ({Predecessor:} 9... Qa5 10. O-O e5 11. a3 Be7 12. b4 Qc7 13. h3 O-O 14. Be3 Be6 15. Qe2 a5 {0-1 (43) Hidalgo Santana,F (2140)-Hernandez Leon,A (2276) Vecindario 2019}) 10. O-O {[%emt 0:02:17][%cal Oc4c5]} Bg7 {[%emt 0:00:05]} 11. c5 {[%emt 0:06:28]} dxc5 {[%emt 0:00:59]} 12. Be3 {[%emt 0:12:00]} Ng4 {[%emt 0:03:34]} 13. Bxc5 {[%emt 0:00:42]} Qa5 $1 {[%emt 0:11:02] [#]} 14. Nd5 $1 {[%emt 0:13:12]} Qxc5 {[%emt 0:00:06]} 15. Nc7+ {[%emt 0:00:03]} Kd8 {[%emt 0:00:27]} 16. Nxa8 {[%emt 0:00:07]} Bd4 $1 {[%emt 0:00:06][%cal Rd4f2]} 17. Qd2 {[%emt 0:06:22]} (17. h3 Nxf2 18. Rxf2 Bxf2+ 19. Kh1 e5 $15) 17... Qe5 {[%emt 0:01:19]} (17... Kc8 $1 $14) 18. g3 $1 $16 {[%emt 0:04:29] Rfd1 is the strong threat.} (18. Rfd1 $2 Qxh2+ 19. Kf1 e5 $19) 18... Qh5 {[%emt 0:10:25][%csl Gg4][%cal Rh5h2]} 19. h4 {[%emt 0:00:11]} Qe5 {[%emt 0:00:04][%csl LRb2,LRe4,LRg3] ( -> ...Qxg3+)} 20. Qf4 {[%emt 0:04:14]} ({White should play} 20. Kh1 $16 {Hoping for Rad1.} Nf6 21. Rad1) 20... Kc8 {[%emt 0:14:10]} (20... Qxf4 $14 21. gxf4 e5) 21. Rad1 {[%emt 0:02:03][%cal Od1d4]} Qxf4 {[%emt 0:04:30]} 22. gxf4 {[%emt 0:00:04] Chess con chili.} Ba7 {[%emt 0:00:28]} 23. Rd2 $1 {[%emt 0:02:33]} Nf6 {[%emt 0:05:23] [#]} 24. Rc1 $1 {[%emt 0:03:43]} Kb8 {[%emt 0:07:42] [#]} 25. e5 $1 {[%emt 0:03:09]} (25. Bxc6 $6 Rc8 26. Rdc2 (26. Rxd7 Nxd7 27. Rc4 Bc5 $17) 26... Bxc6 27. Rxc6 Rxc6 28. Rxc6 Kxa8 $11) 25... Nd5 {[%emt 0:00:06] [#]} 26. Nc7 $1 {[%emt 0:00:34][%mdl 512]} Kxc7 {[%emt 0:01:05]} 27. Rxd5 {[%emt 0:00:08]} Rb8 {[%emt 0:00:07]} 28. Rxd7+ {[%emt 0:05:48]} Kxd7 {[%emt 0:00:05]} 29. Rxc6 {[%emt 0:00:03][%mdl 4096] Endgame KRB-KRB} Kd8 {[%emt 0:00:06]} 30. Rxa6 {[%emt 0:00:03]} Bd4 {[%emt 0:00:05]} 31. b3 {[%emt 0:00:34]} Bb6 {[%emt 0:00:16]} 32. Bc6 {[%emt 0:10:31]} Kc7 {[%emt 0:00:07]} 33. Ra8 {[%emt 0:03:32]} Rxa8 {[%emt 0:00:08]} 34. Bxa8 {[%emt 0:00:04] KB-KB} Bd4 {[%emt 0:10:20]} 35. Kg2 {[%emt 0:03:56]} Kb6 {[%emt 0:00:17]} 36. Bd5 {[%emt 0:05:44]} f6 {[%emt 0:01:24]} 37. exf6 {[%emt 0:03:38]} exf6 {[%emt 0:00:32]} 38. Bg8 {[%emt 0:01:57]} h6 {[%emt 0:00:08]} 39. Bf7 {[%emt 0:01:24]} g5 {[%emt 0:02:44]} 40. fxg5 {[%emt 0:00:24]} fxg5 {[%emt 0:00:07]} 41. h5 {[%emt 0:30:12]} Kc5 {[%emt 0:30:13]} 42. f3 {[%emt 0:00:55]} Bc3 {[%emt 0:01:26]} 43. Kf2 {[%emt 0:01:15] And now Ke3 would win.} Kd4 {[%emt 0:00:15]} 44. Ke2 {[%emt 0:00:22]} Bb4 {[%emt 0:01:19]} 45. Bg8 {[%emt 0:00:00]} Ba5 {[%emt 0:00:00]} 46. a3 {[%emt 0:00:00]} Bc3 {[%emt 0:00:00]} 47. b4 {[%emt 0:00:00]} Bb2 {[%emt 0:00:00]} 48. a4 {[%emt 0:00:00] Black must now prevent a5.} Bc3 {[%emt 0:00:00]} 49. a5 {[%emt 0:00:00]} (49. b5 $16) 49... Bxb4 $14 {[%emt 0:00:00]} 50. a6 {[%emt 0:00:00] White wants to mate with a7.} Bc5 {[%emt 0:00:00]} 51. Kd2 {[%emt 0:00:00]} Ba7 {[%emt 0:00:00]} 52. Be6 {[%emt 0:00:00]} Ke5 {[%emt 0:00:00]} 53. Bc8 {[%emt 0:00:00]} Kd4 {[%emt 0:00:00]} 54. Kc2 {[%emt 0:00:00]} Kc4 {[%emt 0:00:00]} 55. Bh3 {[%emt 0:00:00]} Kd4 {[%emt 0:00:00]} 56. Kb3 {[%emt 0:00:00]} Ke5 {[%emt 0:00:00]} 57. Kc4 {[%emt 0:00:00]} Kd6 {[%emt 0:00:00]} 58. Bg4 {[%emt 0:00:00]} Ke5 {[%emt 0:00:00]} 59. Bc8 {[%emt 0:00:00]} (59. Kb5 $14 Kd6 60. Kc4) 59... Kd6 {[%emt 0:00:00]} ({Better is} 59... Kf4 $1 $11) 60. Kd3 {[%emt 0:00:00] Black escapes into a draw.  Weighted Error Value: White=0.09 (flawless) /Black=0.10 (very precise)} 1/2-1/2